fUST/lending_fUST_20240116
["ID","MTS","AMOUNT","RATE_DAILY","PERIOD"]
[311724378,1705363045670,-80.34376534,0.0002395,2]
[311724380,1705363049080,-695.73113946,0.0002395,2]
[311724381,1705363049177,-14.19859468,0.0002395,2]
[311724387,1705363063749,-196.44072028,0.0002395,2]
[311724388,1705363063777,-3753.88528537,0.0002395,2]
[311724389,1705363063980,-80.61889807,0.0002395,2]
[311724395,1705363087791,-3657.24480086,0.0002395,2]
[311724396,1705363087973,-74.637649,0.0002395,2]
[311724402,1705363126338,5076.82070679,0.00023,120]
[311724413,1705363330636,1465.14583138,0.00018737,2]
[311724419,1705363356665,-523.62820305,0.00023,2]
[311724420,1705363356772,-10.68628986,0.00023,2]
[311724421,1705363358319,155.01240099,0.00023,2]
[311724422,1705363392520,-155.01240099,0.00023,2]
[311724423,1705363392549,-496.44070505,0.00023,2]
[311724424,1705363392692,-13.29496135,0.00023,2]
[311724425,1705363405148,-197.8107066,0.00023,2]
[311724426,1705363405178,-476.41267025,0.00023972,2]
[311724427,1705363405214,-13.75966075,0.00023972,2]
[311724430,1705363415186,-12000.0,0.0002397,2]
[311724431,1705363415427,-12000.0,0.0002397,2]
[311724432,1705363415532,-900.0,0.0002397,2]
[311724433,1705363416622,3213.34932591,0.00023,2]
[311724435,1705363436937,-268.41876427,0.00023,2]
[311724436,1705363437152,-5.47793396,0.00023,2]
[311724457,1705363516931,-154.9690062,0.00023947,2]
[311724458,1705363516959,-154.44594685,0.00023948,2]
[311724459,1705363517048,-6.31459088,0.00023948,2]
[311724495,1705363685360,-12000.0,0.0002385,2]
[311724496,1705363685473,-12000.0,0.0002385,2]
[311724497,1705363685636,-572.6269036,0.0002385,2]
[311724500,1705363748475,-956.91715474,0.00022355,2]
[311724501,1705363748599,-19.52892152,0.00022355,2]
[311724502,1705363768630,-1022.72289368,0.00022361,2]
[311724503,1705363768784,-20.87189579,0.00022361,2]
[311724537,1705363832229,-735.82,0.0002482,3]
[311724539,1705363832238,-154.9690062,0.00024824,4]
[311724541,1705363832248,-170.64911921,0.00024825,2]
[311724543,1705363832257,-376.65307367,0.00024825,2]
[311724547,1705363832288,-910.92402294,0.00024825,2]
[311724610,1705363838259,-679.24429502,0.00024823,2]
[311724612,1705363838268,-154.9690062,0.00024823,2]
[311724614,1705363838278,-703.48874494,0.00024825,2]
[311724616,1705363838288,-461.33824385,0.00024826,2]
[311724625,1705363838371,-225.73327796,0.00024826,2]
[311724627,1705363838382,-875.26749955,0.00024826,2]
[311724629,1705363838392,-18880.85904478,0.00024827,2]
[311724630,1705363838401,-81113.81175264,0.0002483,2]
[311724632,1705363838410,-19675.95998529,0.00024831,2]
[311724633,1705363838420,-12878.27,0.00024863,2]
[311724635,1705363838429,-500.0,0.00024863,2]
[311724636,1705363838439,-502.18004211,0.00024863,2]
[311724637,1705363838448,-360.95,0.00024959,3]
[311724638,1705363838457,-19512.75,0.00024969,2]
[311724639,1705363838466,-500.0,0.00024969,2]
[311724640,1705363838479,-4471.13,0.00024969,2]
[311724641,1705363838488,-500.0,0.00024969,2]
[311724642,1705363838497,-4228.79,0.00024969,2]
[311724643,1705363838506,-983.56,0.00024969,2]
[311724644,1705363838515,-500.0,0.00024969,2]
[311724645,1705363838526,-228.4686916,0.00024969,2]
[311724646,1705363838537,-572.35,0.00024969,2]
[311724647,1705363838547,-570.21,0.00024997,2]
[311724648,1705363838556,-581.9871784,0.00024997,2]
[311724649,1705363838567,-470.04658801,0.00025014,2]
[311724650,1705363838576,-500.0,0.00025016,2]
[311724651,1705363838585,-500.0,0.00025016,2]
[311724652,1705363838594,-500.0,0.00025016,2]
[311724653,1705363838605,-2485.37,0.00025016,2]
[311724654,1705363838617,-500.0,0.00025016,2]
[311724655,1705363838627,-502.15793404,0.00025016,2]
[311724656,1705363838639,-500.0,0.00025016,2]
[311724661,1705363838734,-500.0,0.00025016,2]
[311724663,1705363838745,-500.0,0.00025016,2]
[311724665,1705363838754,-500.0,0.00025016,2]
[311724667,1705363838763,-500.0,0.00025016,2]
[311724669,1705363838772,-1647.66,0.00025016,2]
[311724671,1705363838781,-500.0,0.00025016,2]
[311724673,1705363838790,-500.0,0.00025016,2]
[311724675,1705363838799,-500.0,0.00025016,2]
[311724677,1705363838808,-500.0,0.00025016,2]
[311724678,1705363838817,-409.20909171,0.00025016,2]
[311724680,1705363838826,-500.0,0.00025016,2]
[311724682,1705363838835,-500.0,0.00025016,2]
[311724684,1705363838844,-635.11268638,0.00025016,2]
[311724686,1705363838853,-217.08778916,0.00025016,2]
[311724688,1705363838862,-500.0,0.00025016,2]
[311724690,1705363838872,-500.0,0.00025016,2]
[311724692,1705363838880,-1086.26,0.00025016,2]
[311724694,1705363838889,-155.06045739,0.00025018,2]
[311724696,1705363838898,-543.8563125,0.00025018,2]
[311724697,1705363838907,-615.62529959,0.00025018,2]
[311724699,1705363838917,-155.23868861,0.00025018,2]
[311724701,1705363838926,-12878.27,0.00025137,2]
[311724703,1705363838935,-500.0,0.00025137,2]
[311724705,1705363838945,-19512.75,0.00025243,2]
[311724707,1705363838954,-500.0,0.00025243,2]
[311724709,1705363838964,-4471.13,0.00025243,2]
[311724711,1705363838973,-500.0,0.00025243,2]
[311724713,1705363838982,-4228.79,0.00025243,2]
[311724715,1705363838991,-983.56,0.00025243,2]
[311724717,1705363839002,-534.96971966,0.00025243,2]
[311724719,1705363839011,-572.35,0.00025243,2]
[311724721,1705363839021,-570.21,0.00025271,2]
[311724722,1705363839034,-500.0,0.0002529,2]
[311724724,1705363839045,-500.0,0.0002529,2]
[311724726,1705363839064,-2485.37,0.0002529,2]
[311724728,1705363839076,-500.0,0.0002529,2]
[311724729,1705363839085,-500.0,0.0002529,2]
[311724730,1705363839094,-500.0,0.0002529,2]
[311724731,1705363839103,-503.84730976,0.0002529,2]
[311724732,1705363839113,-1647.66,0.0002529,2]
[311724733,1705363839123,-500.0,0.0002529,2]
[311724734,1705363839132,-500.0,0.0002529,2]
[311724735,1705363839142,-500.72294429,0.0002529,2]
[311724736,1705363839151,-1086.26,0.0002529,2]
[311724737,1705363839160,-12878.27,0.00025411,2]
[311724738,1705363839169,-498.0,0.00025411,2]
[311724739,1705363839179,-19512.75,0.00025517,2]
[311724740,1705363839188,-500.0,0.00025517,2]
[311724741,1705363839197,-4471.13,0.00025517,2]
[311724742,1705363839206,-500.0,0.00025517,2]
[311724743,1705363839216,-4228.79,0.00025517,2]
[311724744,1705363839225,-983.56,0.00025517,2]
[311724745,1705363839234,-572.35,0.00025517,2]
[311724746,1705363839244,-570.21,0.00025545,2]
[311724747,1705363839253,-2485.37,0.00025564,2]
[311724748,1705363839262,-500.0,0.00025564,2]
[311724749,1705363839271,-500.0,0.00025564,2]
[311724750,1705363839280,-500.0,0.00025564,2]
[311724751,1705363839290,-1647.66,0.00025564,2]
[311724752,1705363839299,-361.24715792,0.00025564,2]
[311724753,1705363839308,-500.0,0.00025564,2]
[311724754,1705363839319,-1086.26,0.00025564,2]
[311724755,1705363839327,-12878.27,0.00025685,2]
[311724756,1705363839337,-19512.75,0.00025791,2]
[311724757,1705363839346,-500.0,0.00025791,2]
[311724758,1705363839354,-4471.13,0.00025791,2]
[311724759,1705363839365,-500.0,0.00025791,2]
[311724760,1705363839374,-4228.79,0.00025791,2]
[311724761,1705363839383,-983.56,0.00025791,2]
[311724762,1705363839392,-572.35,0.00025791,2]
[311724763,1705363839401,-570.21,0.00025819,2]
[311724764,1705363839411,-2485.37,0.00025838,2]
[311724765,1705363839420,-389.69726506,0.00025838,2]
[311724766,1705363839429,-500.0,0.00025838,2]
[311724767,1705363839438,-500.0,0.00025838,2]
[311724768,1705363839447,-1647.66,0.00025838,2]
[311724769,1705363839456,-500.0,0.00025838,2]
[311724770,1705363839465,-1086.26,0.00025838,2]
[311724771,1705363839474,-12878.27,0.00025959,2]
[311724772,1705363839483,-2643.06,0.00026041,2]
[311724773,1705363839493,-500.0,0.00026041,2]
[311724774,1705363839502,-1251.64,0.00026041,2]
[311724775,1705363839511,-590.46,0.00026041,2]
[311724776,1705363839520,-2207.69,0.00026041,2]
[311724777,1705363839529,-949.27,0.00026041,2]
[311724778,1705363839538,-1974.59,0.00026041,2]
[311724779,1705363839547,-19512.75,0.00026065,2]
[311724780,1705363839556,-500.0,0.00026065,2]
[311724781,1705363839565,-4471.13,0.00026065,2]
[311724782,1705363839574,-163.3226322,0.00026065,2]
[311724783,1705363839583,-4228.79,0.00026065,2]
[311724784,1705363839593,-983.56,0.00026065,2]
[311724785,1705363839602,-572.35,0.00026065,2]
[311724787,1705363839616,-570.21,0.00026093,2]
[311724789,1705363839626,-2485.37,0.00026112,2]
[311724790,1705363839635,-500.0,0.00026112,2]
[311724792,1705363839644,-500.0,0.00026112,2]
[311724794,1705363839653,-1647.66,0.00026112,2]
[311724796,1705363839663,-500.0,0.00026112,2]
[311724798,1705363839672,-1086.26,0.00026112,2]
[311724800,1705363839683,-12878.27,0.00026233,2]
[311724802,1705363839693,-2643.06,0.00026315,2]
[311724804,1705363839703,-500.0,0.00026315,2]
[311724806,1705363839712,-1251.64,0.00026315,2]
[311724808,1705363839722,-590.46,0.00026315,2]
[311724810,1705363839732,-2207.69,0.00026315,2]
[311724812,1705363839741,-949.27,0.00026315,2]
[311724814,1705363839750,-1974.59,0.00026315,2]
[311724816,1705363839760,-19512.75,0.00026339,2]
[311724819,1705363839770,-500.0,0.00026339,2]
[311724820,1705363839779,-4471.13,0.00026339,2]
[311724823,1705363839789,-4228.79,0.00026339,2]
[311724824,1705363839799,-983.56,0.00026339,2]
[311724826,1705363839808,-572.35,0.00026339,2]
[311724828,1705363839818,-570.21,0.00026367,2]
[311724830,1705363839827,-2485.37,0.00026386,2]
[311724832,1705363839836,-500.0,0.00026386,2]
[311724834,1705363839845,-500.0,0.00026386,2]
[311724836,1705363839854,-1647.66,0.00026386,2]
[311724838,1705363839865,-500.0,0.00026386,2]
[311724840,1705363839873,-1086.26,0.00026386,2]
[311724841,1705363839882,-12878.27,0.00026507,2]
[311724843,1705363839891,-2643.06,0.00026589,2]
[311724845,1705363839901,-500.0,0.00026589,2]
[311724847,1705363839910,-1251.64,0.00026589,2]
[311724848,1705363839919,-590.46,0.00026589,2]
[311724850,1705363839928,-2207.69,0.00026589,2]
[311724852,1705363839937,-949.27,0.00026589,2]
[311724854,1705363839947,-1974.59,0.00026589,2]
[311724856,1705363839956,-19512.75,0.00026613,2]
[311724858,1705363839965,-500.0,0.00026613,2]
[311724860,1705363839974,-4471.13,0.00026613,2]
[311724862,1705363839983,-4228.79,0.00026613,2]
[311724864,1705363839992,-983.56,0.00026613,2]
[311724866,1705363840002,-572.35,0.00026613,2]
[311724868,1705363840011,-570.21,0.00026641,2]
[311724869,1705363840020,-2485.37,0.0002666,2]
[311724871,1705363840029,-500.0,0.0002666,2]
[311724873,1705363840038,-500.0,0.0002666,2]
[311724875,1705363840047,-1647.66,0.0002666,2]
[311724877,1705363840056,-500.0,0.0002666,2]
[311724879,1705363840065,-1086.26,0.0002666,2]
[311724881,1705363840074,-1809.724661,0.00026725,2]
[311724883,1705363840083,-1809.724661,0.00026725,2]
[311724885,1705363840092,-50000.0,0.00026725,2]
[311724887,1705363840101,-12878.27,0.00026781,2]
[311724889,1705363840112,-2643.06,0.00026863,2]
[311724891,1705363840120,-500.0,0.00026863,2]
[311724892,1705363840129,-1251.64,0.00026863,2]
[311724894,1705363840138,-590.46,0.00026863,2]
[311724896,1705363840147,-2207.69,0.00026863,2]
[311724898,1705363840156,-949.27,0.00026863,2]
[311724900,1705363840165,-1974.59,0.00026863,2]
[311724902,1705363840176,-19512.75,0.00026887,2]
[311724904,1705363840185,-500.0,0.00026887,2]
[311724906,1705363840194,-4471.13,0.00026887,2]
[311724908,1705363840204,-4228.79,0.00026887,2]
[311724910,1705363840213,-983.56,0.00026887,2]
[311724912,1705363840222,-572.35,0.00026887,2]
[311724914,1705363840231,-570.21,0.00026915,2]
[311724916,1705363840241,-2485.37,0.00026933,2]
[311724917,1705363840250,-500.0,0.00026933,2]
[311724919,1705363840259,-500.0,0.00026933,2]
[311724921,1705363840269,-1647.66,0.00026933,2]
[311724923,1705363840278,-500.0,0.00026933,2]
[311724926,1705363840287,-1086.26,0.00026933,2]
[311724928,1705363840296,-12878.27,0.00027055,2]
[311724930,1705363840305,-155.05582134,0.00027121,2]
[311724932,1705363840314,-2643.06,0.00027136,2]
[311724934,1705363840324,-500.0,0.00027136,2]
[311724936,1705363840332,-1251.64,0.00027136,2]
[311724938,1705363840341,-590.46,0.00027136,2]
[311724940,1705363840350,-2207.69,0.00027136,2]
[311724942,1705363840360,-949.27,0.00027136,2]
[311724945,1705363840369,-1974.59,0.00027136,2]
[311724948,1705363840378,-610.71219988,0.0002716,2]
[311724951,1705363840387,-500.0,0.0002716,2]
[311724953,1705363840396,-500.0,0.0002716,2]
[311724955,1705363840407,-596.16576251,0.0002716,2]
[311724957,1705363840416,-500.0,0.0002716,2]
[311724958,1705363840425,-500.0,0.0002716,2]
[311724960,1705363840434,-500.0,0.0002716,2]
[311724962,1705363840443,-500.0,0.0002716,2]
[311724964,1705363840452,-500.0,0.0002716,2]
[311724966,1705363840462,-500.0,0.0002716,2]
[311724968,1705363840470,-512.16046504,0.0002716,2]
[311724970,1705363840479,-500.0,0.0002716,2]
[311724972,1705363840488,-500.0,0.0002716,2]
[311724974,1705363840497,-500.0,0.0002716,2]
[311724976,1705363840507,-500.0,0.0002716,2]
[311724978,1705363840515,-500.0,0.0002716,2]
[311724987,1705363840594,-500.0,0.0002716,2]
[311724988,1705363840603,-500.0,0.0002716,2]
[311724990,1705363840613,-500.0,0.0002716,2]
[311724992,1705363840623,-500.0,0.0002716,2]
[311724994,1705363840632,-545.62127365,0.0002716,2]
[311724996,1705363840641,-500.0,0.0002716,2]
[311724998,1705363840650,-500.0,0.0002716,2]
[311725000,1705363840659,-500.0,0.0002716,2]
[311725002,1705363840668,-500.0,0.0002716,2]
[311725004,1705363840676,-500.0,0.0002716,2]
[311725006,1705363840685,-500.0,0.0002716,2]
[311725008,1705363840694,-500.0,0.0002716,2]
[311725010,1705363840703,-500.0,0.0002716,2]
[311725012,1705363840712,-500.0,0.0002716,2]
[311725014,1705363840721,-500.0,0.0002716,2]
[311725016,1705363840730,-500.0,0.0002716,2]
[311725018,1705363840739,-500.0,0.0002716,2]
[311725019,1705363840748,-500.0,0.0002716,2]
[311725021,1705363840757,-500.0,0.0002716,2]
[311725023,1705363840766,-500.0,0.0002716,2]
[311725025,1705363840775,-500.0,0.0002716,2]
[311725027,1705363840784,-527.4027,0.0002716,2]
[311725029,1705363840793,-303.99309576,0.0002716,2]
[311725031,1705363840802,-500.0,0.0002716,2]
[311725033,1705363840811,-500.0,0.0002716,2]
[311725035,1705363840820,-500.0,0.0002716,2]
[311725037,1705363840829,-500.0,0.0002716,2]
[311725039,1705363840838,-500.0,0.0002716,2]
[311725041,1705363840847,-500.0,0.0002716,2]
[311725043,1705363840856,-19512.75,0.00027161,2]
[311725045,1705363840866,-500.0,0.00027161,2]
[311725047,1705363840875,-4471.13,0.00027161,2]
[311725049,1705363840884,-4228.79,0.00027161,2]
[311725051,1705363840893,-983.56,0.00027161,2]
[311725053,1705363840901,-572.35,0.00027161,2]
[311725055,1705363840910,-1809.724661,0.00027161,2]
[311725057,1705363840919,-1809.724661,0.00027161,2]
[311725059,1705363840928,-570.21,0.00027189,2]
[311725061,1705363840937,-2485.37,0.00027207,2]
[311725063,1705363840946,-500.0,0.00027207,2]
[311725065,1705363840955,-500.0,0.00027207,2]
[311725066,1705363840964,-1647.66,0.00027207,2]
[311725068,1705363840973,-500.0,0.00027207,2]
[311725070,1705363840983,-1086.26,0.00027207,2]
[311725072,1705363840992,-200.0,0.00027321,15]
[311725074,1705363841001,-12878.27,0.00027329,2]
[311725076,1705363841010,-2643.06,0.0002741,2]
[311725078,1705363841021,-500.0,0.0002741,2]
[311725080,1705363841030,-1251.64,0.0002741,2]
[311725082,1705363841039,-590.46,0.0002741,2]
[311725084,1705363841049,-2207.69,0.0002741,2]
[311725086,1705363841058,-949.27,0.0002741,2]
[311725088,1705363841067,-1974.59,0.0002741,2]
[311725090,1705363841076,-19512.75,0.00027435,2]
[311725092,1705363841084,-500.0,0.00027435,2]
[311725094,1705363841094,-4471.13,0.00027435,2]
[311725096,1705363841102,-4228.79,0.00027435,2]
[311725098,1705363841112,-983.56,0.00027435,2]
[311725100,1705363841121,-572.35,0.00027435,2]
[311725101,1705363841130,-570.21,0.00027463,2]
[311725103,1705363841139,-2485.37,0.00027481,2]
[311725105,1705363841148,-500.0,0.00027481,2]
[311725107,1705363841157,-500.0,0.00027481,2]
[311725109,1705363841166,-1647.66,0.00027481,2]
[311725111,1705363841175,-500.0,0.00027481,2]
[311725113,1705363841185,-1086.26,0.00027481,2]
[311725115,1705363841195,-12878.27,0.00027603,2]
[311725117,1705363841204,-2643.06,0.00027684,2]
[311725119,1705363841213,-500.0,0.00027684,2]
[311725121,1705363841223,-1251.64,0.00027684,2]
[311725123,1705363841233,-590.46,0.00027684,2]
[311725125,1705363841242,-2207.69,0.00027684,2]
[311725127,1705363841251,-949.27,0.00027684,2]
[311725129,1705363841262,-1974.59,0.00027684,2]
[311725131,1705363841273,-19512.75,0.00027709,2]
[311725133,1705363841283,-500.0,0.00027709,2]
[311725135,1705363841293,-4471.13,0.00027709,2]
[311725137,1705363841303,-4228.79,0.00027709,2]
[311725139,1705363841312,-983.56,0.00027709,2]
[311725141,1705363841322,-572.35,0.00027709,2]
[311725143,1705363841331,-1809.724661,0.00027709,2]
[311725145,1705363841340,-1809.724661,0.00027709,2]
[311725147,1705363841351,-570.21,0.00027737,2]
[311725149,1705363841363,-2485.37,0.00027755,2]
[311725150,1705363841373,-500.0,0.00027755,2]
[311725152,1705363841382,-500.0,0.00027755,2]
[311725154,1705363841391,-1647.66,0.00027755,2]
[311725156,1705363841402,-500.0,0.00027755,2]
[311725158,1705363841411,-1086.26,0.00027755,2]
[311725160,1705363841422,-12878.27,0.00027877,2]
[311725162,1705363841431,-2643.06,0.00027958,2]
[311725164,1705363841440,-500.0,0.00027958,2]
[311725166,1705363841449,-1251.64,0.00027958,2]
[311725168,1705363841459,-590.46,0.00027958,2]
[311725170,1705363841468,-2207.69,0.00027958,2]
[311725172,1705363841478,-949.27,0.00027958,2]
[311725174,1705363841487,-1974.59,0.00027958,2]
[311725176,1705363841496,-500.0,0.00027982,4]
[311725178,1705363841505,-500.0,0.00027982,4]
[311725180,1705363841514,-388.9124457,0.00027982,4]
[311725182,1705363841524,-500.0,0.00027982,4]
[311725184,1705363841533,-500.0,0.00027982,4]
[311725186,1705363841542,-283.44061724,0.00027982,4]
[311725188,1705363841551,-500.0,0.00027982,4]
[311725190,1705363841560,-500.0,0.00027982,4]
[311725192,1705363841569,-162.00428231,0.00027982,4]
[311725194,1705363841577,-500.0,0.00027982,4]
[311725196,1705363841586,-500.0,0.00027982,4]
[311725198,1705363841595,-366.49486318,0.00027982,4]
[311725200,1705363841604,-364.49507885,0.00027982,4]
[311725202,1705363841617,-500.0,0.00027982,4]
[311725204,1705363841626,-500.0,0.00027982,4]
[311725205,1705363841636,-486.77475838,0.00027982,4]
[311725207,1705363841645,-500.0,0.00027982,4]
[311725209,1705363841654,-19512.75,0.00027983,2]
[311725211,1705363841663,-500.0,0.00027983,2]
[311725213,1705363841672,-4471.13,0.00027983,2]
[311725215,1705363841681,-4228.79,0.00027983,2]
[311725217,1705363841690,-983.56,0.00027983,2]
[311725219,1705363841699,-572.35,0.00027983,2]
[311725221,1705363841707,-570.21,0.00028011,2]
[311725223,1705363841716,-2485.37,0.00028029,2]
[311725225,1705363841726,-500.0,0.00028029,2]
[311725227,1705363841735,-500.0,0.00028029,2]
[311725229,1705363841744,-1647.66,0.00028029,2]
[311725231,1705363841753,-500.0,0.00028029,2]
[311725233,1705363841762,-1086.26,0.00028029,2]
[311725234,1705363841771,-12878.27,0.00028151,2]
[311725236,1705363841780,-2643.06,0.00028232,2]
[311725238,1705363841790,-500.0,0.00028232,2]
[311725240,1705363841799,-1251.64,0.00028232,2]
[311725242,1705363841809,-590.46,0.00028232,2]
[311725244,1705363841818,-2207.69,0.00028232,2]
[311725246,1705363841827,-949.27,0.00028232,2]
[311725248,1705363841836,-1974.59,0.00028232,2]
[311725250,1705363841845,-1809.724661,0.00028257,2]
[311725252,1705363841854,-1809.724661,0.00028257,2]
[311725254,1705363841865,-19512.75,0.00028257,2]
[311725256,1705363841875,-500.0,0.00028257,2]
[311725258,1705363841884,-4471.13,0.00028257,2]
[311725260,1705363841892,-1015.85177382,0.00028257,2]
[311725262,1705363842127,-500.0,0.0002716,2]
[311725263,1705363842137,-261.11985494,0.0002716,2]
[311725331,1705363846402,-500.0,0.00024847,2]
[311725333,1705363846411,-500.0,0.00025016,2]
[311725335,1705363846421,-500.0,0.00025121,2]
[311725336,1705363846431,-500.0,0.0002529,2]
[311725337,1705363846441,-500.0,0.00025395,2]
[311725338,1705363846451,-500.0,0.00025669,2]
[311725339,1705363846461,-500.0,0.00025943,2]
[311725340,1705363846471,-500.0,0.00026217,2]
[311725341,1705363846480,-500.0,0.00026491,2]
[311725342,1705363846490,-500.0,0.00026765,2]
[311725343,1705363846499,-500.0,0.00027039,2]
[311725344,1705363846509,-170.51824103,0.00027159,2]
[311725345,1705363846518,-238.88014506,0.0002716,2]
[311725346,1705363846528,-411.48510209,0.0002716,2]
[311725347,1705363846542,-500.0,0.0002716,2]
[311725348,1705363846551,-500.0,0.0002716,2]
[311725349,1705363846561,-252.53554769,0.0002716,2]
[311725350,1705363846570,-500.0,0.00027313,2]
[311725351,1705363846581,-500.0,0.00027587,2]
[311725352,1705363846593,-3212.93822618,0.00028257,2]
[311725353,1705363846601,-983.56,0.00028257,2]
[311725354,1705363846611,-572.35,0.00028257,2]
[311725356,1705363846621,-570.21,0.00028285,2]
[311725358,1705363846631,-2485.37,0.00028303,2]
[311725359,1705363846640,-500.0,0.00028303,2]
[311725360,1705363846649,-500.0,0.00028303,2]
[311725361,1705363846658,-1647.66,0.00028303,2]
[311725362,1705363846667,-500.0,0.00028303,2]
[311725363,1705363846677,-1086.26,0.00028303,2]
[311725364,1705363846686,-7693.71314,0.00028425,2]
[311725376,1705363925194,-154.9690062,0.00022959,4]
[311725377,1705363925223,-178.67391792,0.0002296,2]
[311725378,1705363925389,-154.9690062,0.00022961,2]
[311725379,1705363925417,-329.10784795,0.00022962,2]
[311725380,1705363925446,-154.9690062,0.00022962,2]
[311725381,1705363925474,-1950.5397082,0.00023161,2]
[311725382,1705363925502,-687.07152181,0.00024073,2]
[311725383,1705363925529,-679.24429502,0.00024073,2]
[311725384,1705363925557,-156.38216111,0.00024073,2]
[311725385,1705363925584,-155.28,0.00024073,2]
[311725386,1705363925611,-155.03255684,0.00024073,2]
[311725387,1705363925638,-413.50041826,0.00024073,2]
[311725388,1705363925665,-154.9690062,0.00024074,2]
[311725389,1705363925697,-2777.08346351,0.00024074,2]
[311725390,1705363925727,-3898.20808458,0.00024075,2]
[311725391,1705363925775,-875.26749955,0.00022959,2]
[311725392,1705363925803,-200.0,0.00024073,2]
[311725393,1705363925831,-10924.73250045,0.00024075,2]
[311725394,1705363925864,-10077.05941497,0.00024075,2]
[311725395,1705363933492,-1352.68622532,0.00022958,2]
[311725396,1705363933909,-27.60584133,0.00022958,2]
[311725397,1705363952899,-210.0,0.00022512,2]
[311725398,1705363953007,-3.13739698,0.00022512,2]
[311725399,1705363970699,-154.9690062,0.00022511,2]
[311725400,1705363970728,-154.48701092,0.00022512,2]
[311725401,1705363970968,-6.31542892,0.00022512,2]
[311725402,1705363972089,154.9690062,0.00022511,2]
[311725403,1705363974621,-241.36339561,0.00022511,2]
[311725404,1705363974760,-4.92578358,0.00022511,2]
[311725406,1705363979655,-295.49908567,0.00022512,2]
[311725407,1705363979775,-6.03059359,0.00022512,2]
[311725409,1705363999749,-630.65385726,0.00022512,2]
[311725410,1705363999919,-12.87048688,0.00022512,2]
[311725411,1705364001290,154.9690062,0.00022512,2]
[311725414,1705364076646,-154.9690062,0.00022513,4]
[311725415,1705364076677,-710.15054084,0.00023886,2]
[311725416,1705364076793,-172.62450716,0.00023886,2]
[311725418,1705364158418,-154.9690062,0.00022375,4]
[311725419,1705364158448,-9645.0309938,0.00023,2]
[311725420,1705364158658,-354.9690062,0.00023,2]
[311725429,1705364293521,-500.0,0.00022374,2]
[311725430,1705364293551,-154.56735554,0.00022375,4]
[311725431,1705364293705,-0.40165066,0.00022375,4]
[311725432,1705364293733,-167.925873,0.00023596,2]
[311725436,1705364364649,-154.9690062,0.0002247,4]
[311725437,1705364364675,-1098.34171828,0.00022496,2]
[311725438,1705364364816,-13.88011009,0.00022496,2]
[311725439,1705364364843,-166.666666,0.00023471,2]
[311725440,1705364394410,-154.9690062,0.00022496,4]
[311725441,1705364394438,-11845.0309938,0.00023895,2]
[311725442,1705364394676,-12000.0,0.00023895,2]
[311725443,1705364394994,-949.6437225,0.00023895,2]
[311725448,1705364509471,-154.9690062,0.00022496,4]
[311725449,1705364509611,-277.59076732,0.00023888,2]
[311725450,1705364509666,-163.79675668,0.00023888,2]
[311725451,1705364522379,-154.9690062,0.00022375,4]
[311725452,1705364522411,-6238.71283267,0.00024094,2]
[311725453,1705364522576,-285.45230903,0.00024094,2]
[311725458,1705364675033,-154.9690062,0.00022375,4]
[311725459,1705364675062,-158.19359844,0.00023623,2]
[311725460,1705364675188,-6.39107356,0.00023623,2]
[311725461,1705364675216,-154.9690062,0.00024094,2]
[311725466,1705364798815,-154.9690062,0.00022503,4]
[311725467,1705364798841,-965.62740264,0.00022503,2]